[Event "Krakow Championship-A 2022"]
[Site "Krakow"]
[Date "2022.06.28"]
[Round "5.1"]
[White "Nurkiewicz, Maciej"]
[Black "Warakomski, Tomasz"]
[Result "0-1"]
[ECO "E11"]
[WhiteElo "2332"]
[BlackElo "2534"]
[Annotator "TA"]
[PlyCount "58"]
[EventDate "2022.06.25"]
[EventType "swiss"]
[EventCountry "POL"]
[SourceTitle "playchess.com"]
[Source "ChessBase"]
[SourceQuality "1"]
[TimeControl "40/5400+30:1800+30"]

{[%evp 11,58,39,48,18,21,4,15,14,10,0,36,36,46,0,19,-22,-12,-39,-27,-108,-104,-92,-95,-129,-101,-100,-110,-109,-112,-206,-204,-243,-229,-295,-258,-260,-259,-519,-515,-524,-530,-1468,-1462,-1266,-982,-957,-960,-960,-963]} 1. d4 {[%emt 0:00:15]} Nf6 {[%emt 0:00:21]} 2. c4 {[%emt 0:00:06]} e6 {[%emt 0:00:05]} 3. Nf3 {[%emt 0:00:07]} Bb4+ {[%emt 0:09:02]} 4. Nbd2 {[%emt 0:00:13]} d5 {[%emt 0:01:36]} 5. Qa4+ {[%emt 0:02:08]} Nc6 {[%emt 0:00:07]} 6. e3 {[%emt 0:00:51]} O-O {[%emt 0:00:46]} 7. Be2 {[%emt 0:02:46] [#] E11: Bogo-Indian.} (7. a3 $5 {[%cal Ra3b4]} Be7 8. b4 $11) 7... Qe8 $146 {[%emt 0:15:11][%cal Oc6d4]} ({Predecessor:} 7... dxc4 8. Bxc4 Bd6 9. O-O e5 10. dxe5 Nxe5 11. Nxe5 Bxe5 12. Be2 c6 13. Nf3 Bd6 14. b3 Nd5 {½-½ (42) Perdomo,L (2385)-Leitao,R (2622) Bauru 2012}) 8. Qb3 {[%emt 0:06:46]} a5 {[%emt 0:04:15]} 9. O-O {[%emt 0:01:10] The position is equal.} a4 {[%emt 0:01:10]} 10. Qc2 {[%emt 0:00:05]} e5 {[%emt 0:08:48]} 11. cxd5 {[%emt 0:01:41]} Nxd5 {[%emt 0:00:28]} 12. Ng5 {[%emt 0:08:57]} (12. dxe5 $14 {deserves consideration.} Nxe5 13. Nxe5 Qxe5 14. Nf3) 12... Nf6 {[%emt 0:05:44]} 13. d5 {[%emt 0:22:39]} Ne7 {[%emt 0:04:00]} 14. e4 {[%emt 0:05:52]} c6 {[%emt 0:03:23]} 15. Nc4 {[%emt 0:04:45]} (15. a3 $11 Bxd2 16. Bxd2) 15... cxd5 $17 {[%emt 0:02:04]} 16. Nb6 {[%emt 0:03:03]} Ra5 {[%emt 0:00:16]} 17. a3 {[%emt 0:05:16]} Bd6 {[%emt 0:05:39] ...h6 is the strong threat.} 18. exd5 {[%emt 0:04:14] [#]} ({Avoid the trap} 18. Bd2 $2 Rc5 19. Qd1 (19. Qxa4 $2 h6 $19) 19... h6 $17) 18... Bf5 $1 {[%emt 0:03:15]} 19. Qd1 {[%emt 0:09:29]} Qd8 {[%emt 0:05:05]} ({But not} 19... Nfxd5 $6 20. Bd2 Ra7 21. Nxd5 Nxd5 22. Bc4 $11) 20. Nxa4 {[%emt 0:03:49] [#]} (20. Be3 $17 {was necessary.}) 20... e4 $1 $19 {[%emt 0:04:55] aiming for ...h6.} ({Inferior is} 20... Rxd5 21. Qe1 $17) (20... Nfxd5 21. Bd2 $11) 21. Be3 {[%emt 0:04:29]} Nexd5 {[%emt 0:05:10]} 22. Bd4 {[%emt 0:04:39]} h6 {[%emt 0:04:36]} 23. b4 {[%emt 0:03:23] Hoping for Nxf7.} Ra8 {[%emt 0:06:06]} 24. Nh3 {[%emt 0:00:11]} (24. Nxf7 Kxf7 25. g3) 24... Bxh3 {[%emt 0:01:11] Black is clearly winning.} 25. gxh3 {[%emt 0:00:02]} Qd7 {[%emt 0:00:56][%csl LRa4,LRh3]} 26. Bxf6 {[%emt 0:02:00] [#] And now Bg4 would win.} Qxh3 {[%emt 0:00:14][%csl Gd6][%cal Rh3h2]} 27. f4 {[%emt 0:00:09]} exf3 {[%emt 0:00:47]} 28. Rxf3 {[%emt 0:00:08]} Qxh2+ {[%emt 0:00:21]} 29. Kf1 {[%emt 0:00:03]} Nxf6 {[%emt 0:00:26] Weighted Error Value: White=0.57/Black=0.19 (very precise)} 0-1

[Event "Krakow Championship-A 2022"]
[Site "Krakow"]
[Date "2022.06.28"]
[Round "5.2"]
[White "Agdestein, Simen"]
[Black "Fus, Jakub"]
[Result "0-1"]
[ECO "E46"]
[WhiteElo "2559"]
[BlackElo "2378"]
[Annotator "TA"]
[PlyCount "84"]
[EventDate "2022.06.25"]
[EventType "swiss"]
[EventCountry "POL"]
[SourceTitle "playchess.com"]
[Source "ChessBase"]
[SourceQuality "1"]
[TimeControl "40/5400+30:1800+30"]

{[%evp 9,84,3,0,0,9,-13,-12,-18,-19,-34,-32,-37,-42,-51,-10,-53,-51,-43,-52,-55,-51,-63,-58,-62,-50,-54,-39,-33,-37,-47,-53,-42,-56,-116,-92,-168,-108,-143,-128,-136,-99,-248,-251,-402,-402,-490,-475,-419,-136,-135,-132,-122,-136,-181,-177,-225,-225,-236,-231,-244,-231,-318,-318,-318,-318,-317,-303,-310,-303,-607,-600,-600,-593,-585,-510,-489,-460]} 1. d4 {[%emt 0:02:08]} Nf6 {[%emt 0:00:20]} 2. c4 {[%emt 0:00:18]} e6 {[%emt 0:00:08]} 3. Nc3 {[%emt 0:02:35]} Bb4 {[%emt 0:00:55]} 4. e3 {[%emt 0:00:06]} O-O {[%emt 0:01:41]} 5. Nge2 {[%emt 0:00:11]} c6 {[%emt 0:00:42]} 6. a3 {[%emt 0:08:37] E46: Nimzo-Indian: Rubinstein: 4 e3 0-0 5 Ne2 without early Bd3.} Ba5 {[%emt 0:00:32]} 7. g3 {[%emt 0:05:54]} d5 {[%emt 0:01:14]} 8. b4 {[%emt 0:01:53] The position is equal.} Bc7 {[%emt 0:00:25]} 9. cxd5 {[%emt 0:00:34]} exd5 {[%emt 0:00:19]} 10. Bg2 {[%emt 0:00:31]} Re8 {[%emt 0:03:42]} 11. O-O {[%emt 0:01:22] [#]} h5 $146 {[%emt 0:03:48][%cal Oh5h4]} ({Predecessor:} 11... a5 12. b5 Nbd7 13. Nf4 Nb6 14. Nd3 Bd6 15. a4 Nc4 16. Qb3 Bf5 17. Nb2 Nb6 {0-1 (65) Miralles,G (2433)-Georgiadis,I (2467) Switzerland 2019}) 12. h3 {[%emt 0:07:15]} Bf5 {[%emt 0:09:58]} 13. Nf4 {[%emt 0:01:10]} Bxf4 {[%emt 0:05:08]} 14. exf4 {[%emt 0:03:22]} a5 {[%emt 0:00:52]} 15. Be3 {[%emt 0:17:14]} axb4 {[%emt 0:18:46]} 16. axb4 {[%emt 0:00:04]} Na6 {[%emt 0:00:33]} 17. Qb3 {[%emt 0:08:20]} Qd6 {[%emt 0:10:23]} 18. b5 {[%emt 0:01:12]} Nb4 {[%emt 0:01:03] [#] And now ...Rxa1 would win.} 19. Rxa8 {[%emt 0:17:16]} Rxa8 {[%emt 0:02:20]} 20. bxc6 {[%emt 0:01:22]} bxc6 {[%emt 0:00:19]} 21. Bd2 {[%emt 0:01:40]} (21. Rc1 $1 $15) 21... Nc2 $17 {[%emt 0:04:18]} 22. Qb7 {[%emt 0:05:32]} (22. Rc1 $17 Nxd4 23. Qb6) 22... Re8 {[%emt 0:07:36]} ({Black should try} 22... Qb8 $19 23. Qxb8+ Rxb8) 23. Qb6 {[%emt 0:01:29]} Nd7 {[%emt 0:01:25][%cal Bf6d7,Bd7b6,Bb6c4][%mdl 32]} 24. Qa7 {[%emt 0:07:13]} Qb8 {[%emt 0:06:14]} 25. Qa4 {[%emt 0:00:02]} (25. Qxb8 $17 Nxb8 26. Be3) 25... Nb6 $19 {[%emt 0:01:33]} 26. Qa6 {[%emt 0:04:39]} (26. Qb3) 26... Nc4 {[%emt 0:01:28]} ({Weaker is} 26... Nxd4 27. Be3 Bc8 28. Qd3 $15) 27. Rd1 {[%emt 0:00:53]} Nxd4 {[%emt 0:07:32]} 28. Be3 {[%emt 0:00:45]} Nc2 {[%emt 0:00:36] Pair of Knights!} (28... Nxe3 $19 29. Rxd4 Qb2) 29. Bc5 $17 {[%emt 0:00:36]} Qa8 {[%emt 0:01:20] 0x0.00207c5bdf1bdp-1022s more active pieces.} 30. Qxa8 {[%emt 0:00:32]} Rxa8 {[%emt 0:00:03]} 31. Nxd5 {[%emt 0:00:20]} cxd5 {[%emt 0:00:04]} 32. Rxd5 {[%emt 0:00:22]} (32. Bxd5 {was called for.} Ra4 33. Bg2) 32... g6 $19 {[%emt 0:01:45]} 33. Kh2 {[%emt 0:00:28][%cal Od5f5]} Rc8 {[%emt 0:00:11] [#] White must now prevent ...Be6.} 34. Be7 {[%emt 0:00:37]} Kg7 {[%emt 0:02:27]} 35. Rc5 {[%emt 0:00:39]} Rxc5 {[%emt 0:03:37]} 36. Bxc5 {[%emt 0:00:03]} Nd2 {[%emt 0:01:34]} 37. Bb7 {[%emt 0:01:08]} Ne1 {[%emt 0:01:49]} 38. Bb4 {[%emt 0:00:20]} Ndf3+ {[%emt 0:00:14]} 39. Kh1 $2 {[%emt 0:00:47]} (39. Bxf3 Nxf3+ 40. Kg2) 39... Bxh3 {[%emt 0:00:28][%csl Ge1][%cal Rh3g2] Black is clearly winning.} 40. Bxe1 {[%emt 0:00:03]} Nxe1 {[%emt 0:00:05]} 41. Kg1 {[%emt 0:30:45]} Bg4 {[%emt 0:30:19]} 42. Kf1 {[%emt 0:00:24]} Bf3 {[%emt 0:00:07] Weighted Error Value: White=0.37/Black=0.14 (very precise)} 0-1

[Event "Krakow Championship-A 2022"]
[Site "Krakow"]
[Date "2022.06.28"]
[Round "5.3"]
[White "Zwardon, Vojtech"]
[Black "Holtel, Jasper"]
[Result "1/2-1/2"]
[ECO "A36"]
[WhiteElo "2482"]
[BlackElo "2347"]
[Annotator "TA"]
[PlyCount "93"]
[EventDate "2022.06.25"]
[EventType "swiss"]
[EventCountry "POL"]
[SourceTitle "playchess.com"]
[Source "ChessBase"]
[SourceQuality "1"]
[TimeControl "40/5400+30:1800+30"]

{[%evp 11,93,0,0,0,-2,-19,-16,-43,0,-56,0,-71,-71,-53,0,0,0,0,0,0,0,0,0,0,0,0,0,0,0,0,0,0,7,4,7,4,6,4,4,4,4,6,9,7,6,6,6,6,6,0,6,1,6,6,9,0,14,14,17,1,9,0,0,0,8,0,0,0,0,0,0,0,0,0,0,0,0,0,0,0,0,0,0,0]} 1. c4 c5 2. g3 {[%emt 0:06:04]} Nc6 {[%emt 0:00:40]} 3. Bg2 {[%emt 0:00:03]} g6 {[%emt 0:00:13]} 4. Nc3 {[%emt 0:00:03]} Bg7 {[%emt 0:00:14]} 5. e3 {[%emt 0:00:37]} e6 {[%emt 0:00:16]} 6. Nge2 {[%emt 0:00:58]} Nge7 {[%emt 0:00:09]} 7. b3 {[%emt 0:00:43] A36: Symmetrical English vs ...g6: 4 Bg2 Bg7.} O-O {[%emt 0:00:36]} 8. Bb2 {[%emt 0:00:02]} d5 {[%emt 0:01:12]} 9. O-O {[%emt 0:01:30]} b6 {[%emt 0:14:52] [#]} (9... d4 $5 {[%cal Rd4c3]} 10. Ne4 b6 $11) 10. Na4 $146 {[%emt 0:11:35]} (10. cxd5 $11 exd5 11. d4) ({Predecessor:} 10. Nf4 dxc4 11. bxc4 Rb8 12. Rb1 {1-0 (12) Belyaev,A-Sergeev,M RCCA email 2001}) 10... e5 {[%emt 0:17:43]} (10... d4 $15) 11. cxd5 (11. d4 $1 $11 {keeps the balance.}) 11... Nxd5 $17 12. d4 {[%emt 0:02:09]} cxd4 {[%emt 0:02:21]} (12... exd4 $15 13. exd4 Bg4 14. dxc5 Bxb2 15. Nxb2 Nc3 16. Qxd8 Nxe2+ 17. Kh1 Rfxd8 18. Bxc6 Rac8) 13. exd4 $11 {[%emt 0:00:16] The position is equal.} Nxd4 {[%emt 0:01:44]} 14. Nxd4 {[%emt 0:01:35]} exd4 {[%emt 0:00:11]} 15. Bxd4 {[%emt 0:00:12]} Be6 $1 {[%emt 0:00:40]} 16. Rc1 {[%emt 0:05:09]} Rb8 {[%emt 0:08:50][%cal Ba8b8,Bb8b7,Bb7d7][%mdl 32]} 17. Rc2 {[%emt 0:04:34]} Rb7 {[%emt 0:05:10]} 18. Bxg7 {[%emt 0:13:43]} Kxg7 {[%emt 0:00:17]} 19. Nc3 {[%emt 0:00:41][%cal Rc3d5]} Rd7 {[%emt 0:01:53]} 20. Ne4 {[%emt 0:04:24]} Bf5 {[%emt 0:13:55]} 21. Qa1+ {[%emt 0:00:15]} Kg8 {[%emt 0:02:24]} 22. Rd1 {[%emt 0:07:36] [#] Threatens to win with Rcd2.} Re8 {[%emt 0:01:17]} 23. Rc4 {[%emt 0:02:15] And now Rcd4 would win.} Bxe4 {[%emt 0:04:17]} 24. Bxe4 {[%emt 0:00:24] Rcd4 is the strong threat.} Nf6 {[%emt 0:01:29]} 25. Rxd7 {[%emt 0:00:22]} Nxd7 {[%emt 0:00:09]} 26. Bc6 {[%emt 0:00:13]} Qc7 {[%emt 0:04:05]} 27. Qd1 {[%emt 0:09:21]} (27. Bb5 {seems wilder.} Qb7 28. a4 Rc8 29. Rf4) 27... Re7 {[%emt 0:04:59] [#] Hoping for ...Ne5.} 28. Bd5 {[%emt 0:05:25]} Qb8 {[%emt 0:00:16]} 29. Rd4 {[%emt 0:02:11][%cal Od5f7]} Qc7 {[%emt 0:01:44]} 30. Rc4 {[%emt 0:01:25]} Qb8 {[%emt 0:00:07]} 31. Kg2 {[%emt 0:02:57]} Nf6 {[%emt 0:01:26]} 32. Bf3 {[%emt 0:01:48]} Qe5 {[%emt 0:00:36]} 33. Qd8+ {[%emt 0:01:16]} Re8 {[%emt 0:04:51]} 34. Qc7 {[%emt 0:00:29]} Qe7 {[%emt 0:01:14]} 35. g4 {[%emt 0:04:39]} h6 {[%emt 0:01:51]} 36. Qf4 {[%emt 0:00:07]} g5 {[%emt 0:01:43]} 37. Qf5 {[%emt 0:00:52]} Kg7 {[%emt 0:02:26]} 38. Rc6 {[%emt 0:01:09]} Qe5 {[%emt 0:00:37]} 39. Qxe5 {[%emt 0:00:10]} Rxe5 {[%emt 0:00:09][%mdl 4096] Endgame KRB-KRN} 40. Rc7 {[%emt 0:00:01]} a5 {[%emt 0:01:35]} 41. Rb7 {[%emt 0:30:07]} Re6 {[%emt 0:31:00]} 42. a3 {[%emt 0:03:39]} Rd6 {[%emt 0:00:00]} 43. h3 {[%emt 0:00:00]} Nd7 {[%emt 0:00:00]} 44. b4 {[%emt 0:00:00] Prevents Nc5.} axb4 {[%emt 0:00:00]} 45. axb4 {[%emt 0:00:00]} Ne5 {[%emt 0:00:00]} 46. b5 {[%emt 0:00:00]} Nxf3 {[%emt 0:00:00]} 47. Kxf3 {[%emt 0:00:00] Weighted Error Value: White=0.08 (flawless) /Black=0.05 (flawless)} 1/2-1/2

[Event "Krakow Championship-A 2022"]
[Site "Krakow"]
[Date "2022.06.28"]
[Round "5.4"]
[White "Nguyen, Piotr"]
[Black "Danielyan, Vahe"]
[Result "1-0"]
[ECO "B11"]
[WhiteElo "2402"]
[BlackElo "2324"]
[Annotator "RC"]
[PlyCount "71"]
[EventDate "2022.06.25"]
[EventType "swiss"]
[EventCountry "POL"]
[SourceTitle "playchess.com"]
[Source "ChessBase"]
[SourceQuality "1"]
[TimeControl "40/5400+30:1800+30"]

1. e4 {[%emt 0:00:10]} c6 {[%emt 0:00:54]} 2. Nf3 {[%emt 0:04:16]} d5 {[%emt 0:00:06]} 3. Nc3 {[%emt 0:00:05]} Bg4 {[%emt 0:00:05]} 4. h3 {[%emt 0:00:51]} Bxf3 {[%emt 0:00:09]} 5. Qxf3 {[%emt 0:00:05]} e6 {[%emt 0:00:03]} 6. d3 {[%emt 0:04:25]} Nd7 {[%emt 0:00:06]} 7. g3 {[%emt 0:00:22]} Bb4 {[%emt 0:02:05]} 8. a3 {[%emt 0:04:35]} Ba5 {[%emt 0:00:42]} 9. Bd2 {[%emt 0:03:27]} Ne7 {[%emt 0:00:48]} 10. Bg2 {[%emt 0:00:18]} O-O {[%emt 0:00:10]} 11. O-O {[%emt 0:00:25]} d4 {[%emt 0:02:31]} 12. Nb1 {[%emt 0:00:08]} Bc7 {[%emt 0:00:40]} 13. Qe2 {[%emt 0:05:18]} h6 {[%emt 0:00:40]} 14. f4 {[%emt 0:02:50]} f5 {[%emt 0:12:24]} 15. exf5 {[%emt 0:09:27]} Nxf5 {[%emt 0:00:56]} 16. Qxe6+ {[%emt 0:02:16]} Kh8 {[%emt 0:00:02]} 17. Rf3 {[%emt 0:19:25]} Nc5 {[%emt 0:05:35]} 18. Qe1 {[%emt 0:03:02]} Qf6 {[%emt 0:00:04]} 19. Bb4 {[%emt 0:05:45]} Rfe8 {[%emt 0:17:57]} 20. Qf2 {[%emt 0:00:19]} Nd7 {[%emt 0:01:05]} 21. Nd2 {[%emt 0:00:35]} c5 {[%emt 0:01:40]} 22. Ne4 {[%emt 0:01:06]} Qb6 {[%emt 0:04:32]} 23. Bd2 {[%emt 0:01:13]} Qxb2 {[%emt 0:01:47]} 24. Re1 {[%emt 0:08:54]} Bd8 {[%emt 0:00:36]} 25. Ng5 {[%emt 0:04:51]} Bf6 {[%emt 0:01:37]} 26. Nf7+ {[%emt 0:01:55]} Kg8 {[%emt 0:01:53]} 27. Ne5 {[%emt 0:00:03]} Nb6 {[%emt 0:01:04]} 28. Qe2 {[%emt 0:11:39]} Qxc2 {[%emt 0:02:30]} 29. Rf2 {[%emt 0:01:19]} Qb3 {[%emt 0:07:57]} 30. Qh5 {[%emt 0:01:40]} Qe6 {[%emt 0:00:56]} 31. Bxb7 {[%emt 0:00:35]} Rab8 {[%emt 0:04:40]} 32. Bc6 {[%emt 0:02:35]} Nxg3 {[%emt 0:03:05]} 33. Qg6 {[%emt 0:00:52]} Bxe5 {[%emt 0:00:31]} 34. Bxe8 {[%emt 0:00:07]} Qxh3 {[%emt 0:04:24]} 35. Rh2 Qf5 36. Rxe5 {[%emt 0:01:34]} 1-0

[Event "Krakow Championship-A 2022"]
[Site "Krakow"]
[Date "2022.06.28"]
[Round "5.5"]
[White "Rudolf, Michal"]
[Black "Romanishin, Oleg M"]
[Result "1/2-1/2"]
[ECO "C58"]
[WhiteElo "2361"]
[BlackElo "2400"]
[Annotator "TA"]
[PlyCount "81"]
[EventDate "2022.06.25"]
[EventType "swiss"]
[EventCountry "POL"]
[SourceTitle "playchess.com"]
[Source "ChessBase"]
[SourceQuality "1"]
[TimeControl "40/5400+30:1800+30"]

{[%evp 13,81,17,27,27,17,33,44,25,64,57,56,58,69,61,58,30,76,59,93,93,90,81,89,93,87,85,88,81,81,26,14,13,20,20,20,16,22,25,16,25,16,33,52,54,79,74,87,59,97,75,95,61,94,44,72,64,88,95,93,94,82,86,114,107,161,145,143,52,87,6]} 1. e4 {[%emt 0:00:03]} e5 {[%emt 0:04:21]} 2. Nf3 {[%emt 0:00:05]} Nc6 {[%emt 0:00:06]} 3. Bc4 {[%emt 0:00:04]} Nf6 {[%emt 0:00:07]} 4. Ng5 {[%emt 0:00:39]} d5 {[%emt 0:00:15]} 5. exd5 {[%emt 0:00:06]} Na5 {[%emt 0:00:07]} 6. Bb5+ {[%emt 0:00:05]} Bd7 {[%emt 0:01:03]} 7. Qe2 {[%emt 0:00:36]} Be7 {[%emt 0:00:06]} 8. Nf3 {[%emt 0:01:33] C58: Two Knights: 4 Ng5 d5 5 exd5 Na5 sidelines.} O-O {[%emt 0:04:33] 8...Nxd5 deserves study.} 9. Bxd7 {[%emt 0:00:15]} Qxd7 {[%emt 0:00:10]} 10. Nxe5 {[%emt 0:00:06] White is slightly better.} Qxd5 {[%emt 0:00:43]} 11. O-O {[%emt 0:00:17]} Bd6 {[%emt 0:03:44]} 12. Nf3 {[%emt 0:00:11]} Nc6 {[%emt 0:11:18]} 13. Nc3 {[%emt 0:14:45]} Qh5 {[%emt 0:00:18][%cal Oc6d4] [#] aiming for ...Nd4!} 14. Qb5 $146 {[%emt 0:01:30]} ({Predecessor:} 14. h3 Rae8 15. Qd1 g5 16. Nb5 g4 17. Nxd6 cxd6 18. hxg4 Nxg4 19. d4 Re4 20. Re1 {½-½ (50) Tozzi,T (2043)-Struzka,V (2059) ICCF email 2020}) 14... Qg6 {[%emt 0:10:07]} (14... Nb4 $11) 15. d3 $16 {[%emt 0:01:58]} ({But not} 15. Qxb7 $6 Nb4 16. Qb5 Nxc2 $15) 15... Nb4 {[%emt 0:01:19]} 16. Qa4 {[%emt 0:06:31]} a6 {[%emt 0:12:41]} 17. a3 {[%emt 0:04:12]} b5 {[%emt 0:00:11]} 18. Qb3 {[%emt 0:00:04]} Nc6 {[%emt 0:00:18]} 19. Re1 {[%emt 0:05:07]} Rae8 {[%emt 0:09:07][%cal Oc6d4] Threatens to win with ...Nd4!} 20. Bg5 {[%emt 0:03:41]} Ng4 {[%emt 0:20:17]} 21. Qd5 {[%emt 0:14:14]} (21. Rxe8 $16 Rxe8 22. Ne4) 21... Nce5 $11 {[%emt 0:06:41]} 22. Nxe5 {[%emt 0:02:27]} Bxe5 {[%emt 0:02:47]} 23. h3 $1 {[%emt 0:03:42]} c6 {[%emt 0:00:10]} 24. Qd7 $36 {[%emt 0:08:44][%mdl 2048] White has some pressure.} Qxg5 {[%emt 0:01:57]} 25. Qxg4 {[%emt 0:00:59]} Qf6 {[%emt 0:00:16]} 26. Qb4 {[%emt 0:05:27]} c5 {[%emt 0:01:52]} 27. Qb3 {[%emt 0:00:16]} ({Avoid the trap} 27. Qxc5 $2 Bd4 28. Qxf8+ Rxf8 $19) 27... c4 {[%emt 0:04:24]} 28. dxc4 {[%emt 0:00:54]} bxc4 {[%emt 0:00:51]} 29. Qa4 {[%emt 0:00:42]} Re6 {[%emt 0:02:58]} 30. Re3 {[%emt 0:07:51]} Qf4 {[%emt 0:00:47] ...Qh2+ is the strong threat.} 31. g3 {[%emt 0:01:07]} Qf5 {[%emt 0:00:13]} 32. Qxc4 {[%emt 0:01:58] Strongly threatening Rae1.} Qxh3 {[%emt 0:00:42][%cal Oe6h6]} 33. Qf1 {[%emt 0:00:34]} (33. Rd1 $1 $16) 33... Qf5 {[%emt 0:00:26]} 34. Rae1 {[%emt 0:04:44]} Bd4 {[%emt 0:01:07] [#]} 35. Rxe6 {[%emt 0:01:06]} fxe6 {[%emt 0:00:06] [#]} 36. Ne4 {[%emt 0:00:17]} Bxb2 {[%emt 0:00:07]} 37. Qxa6 {[%emt 0:00:16]} Bd4 {[%emt 0:00:36][%cal Rd4f2]} 38. Qe2 {[%emt 0:00:21]} h6 {[%emt 0:00:52]} (38... h5 $16) 39. Rd1 {[%emt 0:02:44]} Qe5 {[%emt 0:00:53][%cal Of8f2] Hoping for ...Rxf2!} 40. Qg4 {[%emt 0:03:40]} (40. Rd2 $16) 40... Kh8 {[%emt 0:00:46]} 41. c3 {[%emt 0:36:17] Weighted Error Value: White=0.09 (flawless) /Black=0.12 (very precise)} (41. Kg2 $16) 1/2-1/2

[Event "Krakow Championship-A 2022"]
[Site "Krakow"]
[Date "2022.06.28"]
[Round "5.6"]
[White "Pechac, Jergus"]
[Black "Piekielny, Pawel"]
[Result "1-0"]
[ECO "C10"]
[WhiteElo "2597"]
[BlackElo "2230"]
[Annotator "TA"]
[PlyCount "65"]
[EventDate "2022.06.25"]
[EventType "swiss"]
[EventCountry "POL"]
[SourceTitle "playchess.com"]
[Source "ChessBase"]
[SourceQuality "1"]
[TimeControl "40/5400+30:1800+30"]

{[%evp 9,65,14,27,10,50,49,49,41,54,32,29,34,60,67,59,57,49,39,60,47,72,71,63,53,53,63,75,75,97,79,129,125,250,232,278,285,901,891,887,847,29977,29978,29978,29979,29979,29980,29980,29981,29981,29982,29990,29976,29976,29976,29975,29976,29985,29986]} 1. e4 {[%emt 0:15:30]} e6 {[%emt 0:00:15]} 2. d4 {[%emt 0:00:12]} d5 {[%emt 0:00:04]} 3. Nc3 {[%emt 0:00:45]} Be7 {[%emt 0:02:13]} 4. e5 {[%emt 0:01:51]} c5 {[%emt 0:00:06]} 5. Qg4 {[%emt 0:02:00]} Kf8 {[%emt 0:00:07]} 6. dxc5 {[%emt 0:10:51] C10: French with 3 Nc3: Unusual Black 3rd moves and 3...dxe4.} Nc6 {[%emt 0:02:15]} (6... h5 $5 {[%cal Rh5g4]} 7. Qg3 Nh6 $14) 7. Nf3 {[%emt 0:00:30]} Bxc5 {[%emt 0:08:08]} 8. Bd3 {[%emt 0:00:16] White is slightly better.} Nge7 {[%emt 0:03:23] [#]} 9. h4 $146 {[%emt 0:02:07][%cal Bh2h4,Bh4h5][%mdl 32]} ({Predecessor:} 9. O-O Nb4 10. Be3 Nxd3 11. cxd3 Bb6 12. Ne2 Bd7 13. Ng3 h6 14. h4 a5 15. Rac1 {½-½ (56) Gofshtein,L (2520)-Efimov,I (2525) Genova 1998}) 9... Nb4 {[%emt 0:06:56]} 10. h5 {[%emt 0:03:05]} Nxd3+ {[%emt 0:00:22]} 11. cxd3 {[%emt 0:00:09] aiming for d4.} h6 {[%emt 0:00:10]} 12. Na4 {[%emt 0:02:43]} Bb6 {[%emt 0:01:01]} 13. O-O {[%emt 0:01:40]} Nf5 {[%emt 0:04:27]} 14. Qf4 {[%emt 0:01:38]} Bd7 {[%emt 0:13:41]} 15. Nxb6 {[%emt 0:01:10]} axb6 {[%emt 0:00:17]} 16. a4 {[%emt 0:04:20]} Kg8 {[%emt 0:03:20]} 17. b3 {[%emt 0:03:56]} g5 {[%emt 0:07:06]} 18. Qb4 {[%emt 0:02:22] Black is on the road to losing.} Bc6 {[%emt 0:04:45]} 19. Nd4 {[%emt 0:03:11] White is more active.} Nxd4 {[%emt 0:03:49]} ({Better is} 19... Qf8 20. Qxf8+ (20. Qxb6 $2 Ra6 $19) (20. Nxc6 bxc6 21. Qxb6 Rb8 $16) 20... Kxf8 21. Nxf5 exf5) 20. Qxd4 $16 {[%emt 0:00:04]} b5 {[%emt 0:00:18] [#]} (20... Bd7 $16) 21. f4 $1 $18 {[%emt 0:00:44] Threatens to win with fxg5.} g4 {[%emt 0:01:47] [#]} (21... bxa4 22. fxg5 hxg5 23. Qg4 $16 (23. Qf2 Rh7 $14)) 22. f5 $1 {[%emt 0:00:38]} Qh4 {[%emt 0:00:28]} (22... Bd7 23. fxe6 (23. Qxg4+ Kh7 $18) 23... Bxe6) 23. fxe6 {[%emt 0:00:59]} fxe6 {[%emt 0:00:04]} 24. axb5 {[%emt 0:00:27][%cal Od4f4,Ba4b5,Bb5c6][%mdl 32] Qf4! would kill now.} Rxa1 {[%emt 0:00:57]} 25. Qf4 {[%emt 0:00:11][%csl Gf1][%cal Rf4f7] White mates.} Qe7 {[%emt 0:01:24]} 26. Qxg4+ {[%emt 0:00:11]} Qg7 {[%emt 0:00:08]} 27. Qxe6+ {[%emt 0:00:20]} Kh7 {[%emt 0:00:05]} 28. Qf5+ {[%emt 0:00:20]} Kg8 {[%emt 0:00:08]} 29. bxc6 {[%emt 0:01:13]} Ra2 {[%emt 0:02:00]} 30. Qe6+ {[%emt 0:00:07]} Kh7 {[%emt 0:00:05]} 31. Rf7 {[%emt 0:00:11]} Rxg2+ {[%emt 0:00:06]} 32. Kf1 {[%emt 0:00:06]} Rf8 {[%emt 0:00:37]} 33. Qf5+ {[%emt 0:00:07] Weighted Error Value: White=0.03 (flawless) /Black=0.49} 1-0